fUSD/lending_fUSD_20240624
["ID","MTS","AMOUNT","RATE_DAILY","PERIOD"]
[330236613,1719203454811,-276.7269544,0.00021902,2]
[330236614,1719203454821,-5064.5187498,0.00021902,2]
[330236615,1719203454831,-5618.177844,0.00021902,2]
[330236616,1719203454840,-6171.8369381,0.00021902,2]
[330236617,1719203454850,-6725.4960323,0.00021902,2]
[330236618,1719203454861,-7279.1551265,0.00021902,2]
[330236619,1719203454870,-3088.1127577,0.00021902,2]
[330236620,1719203454881,-3445.6211405,0.00021902,2]
[330236621,1719203454891,-3803.1295232,0.00021902,2]
[330236622,1719203454900,-4160.637906,0.00021902,2]
[330236623,1719203454910,-4518.1462887,0.00021902,2]
[330236624,1719203454920,-758.2761596,0.00021902,2]
[330236625,1719203454930,-849.6761577,0.00021902,2]
[330236626,1719203454939,-941.0761558,0.00021902,2]
[330236627,1719203454948,-1032.4761539,0.00021902,2]
[330236628,1719203454958,-1123.876152,0.00021902,2]
[330236629,1719203454967,-171.4864476,0.0002191,2]
[330236630,1719203454977,-4510.8596556,0.0002191,2]
[330236631,1719203454986,-2730.604375,0.0002191,2]
[330236632,1719203454995,-152.24,0.00021912,2]
[330236633,1719203455005,-150.0,0.00021912,2]
[330236634,1719203455020,-502.22439589,0.00021917,2]
[330236635,1719203455029,-500.0,0.00021917,2]
[330236636,1719203455039,-156.22689897,0.00021917,2]
[330236637,1719203455048,-500.0,0.00021917,2]
[330236638,1719203455060,-530.60856032,0.00021917,2]
[330236639,1719203455069,-500.0,0.00021917,2]
[330236640,1719203455079,-500.0,0.00021917,2]
[330236641,1719203455089,-500.0,0.00021917,2]
[330236642,1719203455100,-629.54139733,0.00021917,2]
[330236643,1719203455109,-533.9855142,0.00021917,2]
[330236644,1719203455119,-500.0,0.00021917,2]
[330236645,1719203455128,-501.82401123,0.00021917,2]
[330236646,1719203455137,-500.0,0.00021917,2]
[330236647,1719203455147,-500.0,0.00021917,2]
[330236648,1719203455156,-502.58078903,0.00021917,2]
[330236649,1719203455165,-528.71081795,0.00021917,2]
[330236650,1719203455174,-500.0,0.00021917,2]
[330236651,1719203455183,-500.0,0.00021917,2]
[330236652,1719203455192,-500.93655443,0.00021917,2]
[330236653,1719203455202,-525.03538492,0.00021917,2]
[330236654,1719203455211,-500.0,0.00021917,2]
[330236655,1719203455220,-500.0,0.00021917,2]
[330236656,1719203455229,-500.0,0.00021917,2]
[330236657,1719203455239,-500.0,0.00021917,2]
[330236658,1719203455248,-500.0,0.00021917,2]
[330236659,1719203455258,-500.0,0.00021917,2]
[330236660,1719203455267,-511.07875521,0.00021917,2]
[330236661,1719203455276,-240.67272141,0.00021917,2]
[330236662,1719203455285,-500.0,0.00021917,2]
[330236663,1719203455294,-500.0,0.00021917,2]
[330236664,1719203455303,-501.9542344,0.00021917,2]
[330236665,1719203455313,-500.0,0.00021917,2]
[330236666,1719203455322,-218.38736499,0.00021917,2]
[330236667,1719203455331,-500.0,0.00021917,2]
[330236668,1719203455340,-503.27548089,0.00021917,2]
[330236669,1719203455350,-500.0,0.00021917,2]
[330236670,1719203455359,-500.0,0.00021917,2]
[330236671,1719203455369,-500.0,0.00021917,2]
[330236672,1719203455378,-500.0,0.00021917,2]
[330236673,1719203455388,-500.0,0.00021917,2]
[330236674,1719203455397,-494.50216154,0.00021917,2]
[330236675,1719203455406,-500.0,0.00021917,2]
[330236676,1719203455415,-521.46160295,0.00021917,2]
[330236677,1719203455425,-595.00880559,0.00021917,2]
[330236678,1719203455435,-500.0,0.00021917,2]
[330236679,1719203455445,-500.0,0.00021917,2]
[330236680,1719203455455,-428.70881386,0.00021917,2]
[330236681,1719203455465,-501.8214155,0.00021917,2]
[330236682,1719203455474,-500.40378283,0.00021917,2]
[330236683,1719203455483,-500.0,0.00021917,2]
[330236684,1719203455497,-500.0,0.00021917,2]
[330236685,1719203455507,-500.0,0.00021917,2]
[330236686,1719203455516,-500.0,0.00021917,2]
[330236687,1719203455526,-500.0,0.00021917,2]
[330236688,1719203455535,-500.0,0.00021917,2]
[330236689,1719203455545,-503.0746228,0.00021917,2]
[330236690,1719203455555,-510.93314739,0.00021917,2]
[330236691,1719203455565,-640.01173807,0.00021917,2]
[330236692,1719203455575,-605.47282422,0.00021917,2]
[330236693,1719203455585,-500.0,0.00021917,2]
[330236694,1719203455595,-497.85397321,0.00021917,2]
[330236695,1719203455605,-500.0,0.00021917,2]
[330236696,1719203455619,-502.18024127,0.00021917,2]
[330236697,1719203455629,-502.27345079,0.00021917,2]
[330236698,1719203455638,-497.74258973,0.00021917,2]
[330236699,1719203455648,-498.05108541,0.00021917,2]
[330236700,1719203455659,-503.58636903,0.00021917,2]
[330236701,1719203455669,-502.59222193,0.00021917,2]
[330236702,1719203455678,-500.0,0.00021917,2]
[330236703,1719203455688,-497.88018494,0.00021917,2]
[330236704,1719203455698,-500.0,0.00021917,2]
[330236705,1719203455707,-500.0,0.00021917,2]
[330236706,1719203455716,-497.74296225,0.00021917,2]
[330236707,1719203455726,-287.98760567,0.00021917,2]
[330236708,1719203455735,-441.90435574,0.00021917,2]
[330236709,1719203455745,-503.81191866,0.00021917,2]
[330236710,1719203455755,-494.75328089,0.00021917,2]
[330236711,1719203455765,-508.07003527,0.00021917,2]
[330236712,1719203455774,-505.49277943,0.00021917,2]
[330236713,1719203455784,-396.88222035,0.00021917,2]
[330236714,1719203455793,-503.40364591,0.00021917,2]
[330236715,1719203455803,-517.25599142,0.00021917,2]
[330236716,1719203455812,-500.0,0.00021917,2]
[330236717,1719203455823,-576.58133571,0.00021917,2]
[330236718,1719203455833,-496.30053253,0.00021917,2]
[330236719,1719203455842,-200.0,0.00021917,2]
[330236720,1719203455852,-498.38971853,0.00021917,2]
[330236721,1719203455863,-497.85502901,0.00021917,2]
[330236722,1719203455873,-500.0,0.00021917,2]
[330236723,1719203455883,-500.0,0.00021917,2]
[330236724,1719203455892,-500.97543845,0.00021917,2]
[330236725,1719203455902,-512.53010385,0.00021917,2]
[330236726,1719203455912,-489.15367999,0.00021917,2]
[330236727,1719203455922,-502.12452857,0.00021917,2]
[330236728,1719203455931,-502.60458767,0.00021917,2]
[330236729,1719203455941,-177.68450141,0.00021917,2]
[330236730,1719203455950,-500.0,0.00021917,2]
[330236731,1719203455960,-303.21412537,0.00021917,2]
[330236732,1719203455970,-500.0,0.00021917,2]
[330236733,1719203455979,-500.0,0.00021917,2]
[330236734,1719203455989,-500.0,0.00021917,2]
[330236735,1719203455998,-500.0,0.00021917,2]
[330236736,1719203456008,-507.79010041,0.00021917,2]
[330236737,1719203456024,-537.16818345,0.00021917,2]
[330236738,1719203456188,-500.0,0.00021917,2]
[330236739,1719203456198,-505.0176036,0.00021917,2]
[330236740,1719203456207,-500.0,0.00021917,2]
[330236741,1719203456216,-502.5182149,0.00021917,2]
[330236742,1719203456226,-500.0,0.00021917,2]
[330236743,1719203456235,-525.1226976,0.00021917,2]
[330236744,1719203456245,-500.0,0.00021917,2]
[330236745,1719203456255,-424.47372093,0.00021917,2]
[330236746,1719203456264,-171.49776488,0.00021917,2]
[330236747,1719203456273,-500.0,0.00021917,2]
[330236748,1719203456282,-500.0,0.00021917,2]
[330236749,1719203456292,-516.04185305,0.00021917,2]
[330236750,1719203456301,-510.77023035,0.00021917,2]
[330236751,1719203456310,-500.0,0.00021917,2]
[330236752,1719203456320,-500.0,0.00021917,2]
[330236753,1719203456329,-247.10555887,0.00021917,2]
[330236754,1719203456339,-500.0,0.00021917,2]
[330236755,1719203456348,-500.0,0.00021917,2]
[330236756,1719203456357,-506.51553493,0.00021917,2]
[330236757,1719203456367,-591.87030171,0.00021917,2]
[330236758,1719203456377,-502.20769575,0.00021917,2]
[330236759,1719203456386,-518.91196434,0.00021917,2]
[330236760,1719203456395,-500.0,0.00021917,2]
[330236761,1719203456404,-500.0,0.00021917,2]
[330236762,1719203456413,-500.0,0.00021917,2]
[330236763,1719203456423,-500.0,0.00021917,2]
[330236764,1719203456432,-201.89150994,0.00021917,2]
[330236765,1719203456441,-431.40081714,0.00021917,2]
[330236766,1719203456450,-500.0,0.00021917,2]
[330236767,1719203456459,-501.87086684,0.00021917,2]
[330236768,1719203456469,-532.27293283,0.00021917,2]
[330236769,1719203456477,-518.05,0.00021917,2]
[330236770,1719203456487,-500.0,0.00021917,2]
[330236771,1719203456496,-497.77062802,0.00021917,2]
[330236772,1719203456506,-500.0,0.00021917,2]
[330236773,1719203456515,-500.0,0.00021917,2]
[330236774,1719203456524,-500.0,0.00021917,2]
[330236775,1719203456533,-500.0,0.00021917,2]
[330236776,1719203456542,-501.29670502,0.00021917,2]
[330236777,1719203456551,-500.0,0.00021917,2]
[330236778,1719203456560,-500.0,0.00021917,2]
[330236779,1719203456569,-500.0,0.00021917,2]
[330236780,1719203456579,-500.0,0.00021917,2]
[330236781,1719203456587,-151.0,0.00021917,2]
[330236782,1719203456596,-503.02223528,0.00021917,2]
[330236783,1719203456605,-513.83914123,0.00021917,2]
[330236784,1719203456617,-151.0,0.00021917,2]
[330236785,1719203456626,-259.214643,0.00021917,2]
[330236786,1719203456637,-500.0,0.00021917,2]
[330236787,1719203456646,-497.86952036,0.00021917,2]
[330236788,1719203456655,-500.0,0.00021917,2]
[330236789,1719203456665,-500.0,0.00021917,2]
[330236790,1719203456674,-500.0,0.00021917,2]
[330236791,1719203456684,-498.24586533,0.00021917,2]
[330236792,1719203456693,-500.0,0.00021917,2]
[330236793,1719203456702,-500.0,0.00021917,2]
[330236794,1719203456711,-500.0,0.00021917,2]
[330236795,1719203456721,-530.4851984,0.00021917,2]
[330236796,1719203456730,-500.0,0.00021917,2]
[330236797,1719203456739,-502.87952791,0.00021917,2]
[330236798,1719203456749,-574.41,0.00021917,2]
[330236799,1719203456759,-500.0,0.00021917,2]
[330236800,1719203456768,-522.62567268,0.00021917,2]
[330236801,1719203456778,-500.0,0.00021917,2]
[330236802,1719203456788,-500.0,0.00021917,2]
[330236803,1719203456797,-500.0,0.00021917,2]
[330236804,1719203456806,-500.0,0.00021917,2]
[330236805,1719203456816,-167.45222411,0.00021917,2]
[330236806,1719203456825,-529.86618857,0.00021917,2]
[330236807,1719203456834,-500.0,0.00021917,2]
[330236808,1719203456843,-504.52783741,0.00021917,2]
[330236809,1719203456853,-500.0,0.00021917,2]
[330236810,1719203456862,-503.24706714,0.00021917,2]
[330236811,1719203456871,-151.0,0.00021917,2]
[330236812,1719203456880,-500.0,0.00021917,2]
[330236813,1719203456889,-151.0,0.00021917,2]
[330236814,1719203456899,-500.0,0.00021917,2]
[330236815,1719203456908,-202.625349,0.00021917,2]
[330236816,1719203456917,-500.0,0.00021917,2]
[330236817,1719203456927,-514.66199714,0.00021917,2]
[330236818,1719203456936,-533.0,0.00021917,2]
[330236819,1719203456946,-501.45616094,0.00021917,2]
[330236820,1719203456955,-500.0,0.00021917,2]
[330236821,1719203456965,-252.20663289,0.00021917,2]
[330236822,1719203456974,-500.0,0.00021917,2]
[330236823,1719203456984,-500.0,0.00021917,2]
[330236824,1719203456993,-500.0,0.00021917,2]
[330236825,1719203457002,-500.0,0.00021917,2]
[330236826,1719203457011,-500.0,0.00021917,2]
[330236827,1719203457025,-500.0,0.00021917,2]
[330236828,1719203457034,-458.36010884,0.00021917,2]
[330236829,1719203457043,-500.0,0.00021917,2]
[330236830,1719203457053,-500.0,0.00021917,2]
[330236831,1719203457062,-533.76541803,0.00021917,2]
[330236832,1719203457071,-540.34399945,0.00021917,2]
[330236833,1719203457080,-500.0,0.00021917,2]
[330236834,1719203457090,-515.59685047,0.00021917,2]
[330236835,1719203457101,-500.0,0.00021917,2]
[330236836,1719203457110,-500.0,0.00021917,2]
[330236837,1719203457119,-500.0,0.00021917,2]
[330236838,1719203457129,-500.82405406,0.00021917,2]
[330236839,1719203457138,-508.61964649,0.00021917,2]
[330236840,1719203457147,-584.67,0.00021917,2]
[330236841,1719203457156,-507.89216283,0.00021917,2]
[330236842,1719203457165,-529.71581066,0.00021917,2]
[330236843,1719203457175,-533.37810315,0.00021917,2]
[330236844,1719203457184,-500.0,0.00021917,2]
[330236845,1719203457193,-500.0,0.00021917,2]
[330236846,1719203457202,-500.0,0.00021917,2]
[330236847,1719203457211,-500.0,0.00021917,2]
[330236848,1719203457220,-1000.0,0.00021917,2]
[330236849,1719203457229,-500.0,0.00021917,2]
[330236850,1719203457239,-512.67276035,0.00021917,2]
[330236851,1719203457248,-500.0,0.00021917,2]
[330236852,1719203457257,-548.2707174,0.00021917,2]
[330236853,1719203457266,-500.0,0.00021917,2]
[330236854,1719203457275,-512.29791814,0.00021917,2]
[330236855,1719203457284,-509.7473525,0.00021917,2]
[330236856,1719203457294,-505.19057003,0.00021917,2]
[330236857,1719203457303,-500.0,0.00021917,2]
[330236858,1719203457312,-519.35156325,0.00021917,2]
[330236859,1719203457321,-509.86233119,0.00021917,2]
[330236860,1719203457330,-500.0,0.00021917,2]
[330236861,1719203457339,-505.10944516,0.00021917,2]
[330236862,1719203457348,-500.0,0.00021917,2]
[330236863,1719203457357,-500.0,0.00021917,2]
[330236864,1719203457367,-500.0,0.00021917,2]
[330236865,1719203457376,-503.70098563,0.00021917,2]
[330236866,1719203457385,-500.0,0.00021917,2]
[330236867,1719203457395,-500.0,0.00021917,2]
[330236868,1719203457404,-500.0,0.00021917,2]
[330236869,1719203457413,-506.4170672,0.00021917,2]
[330236870,1719203457423,-500.0,0.00021917,2]
[330236871,1719203457432,-209.96,0.00021917,2]
[330236872,1719203457441,-500.0,0.00021917,2]
[330236873,1719203457451,-630.53,0.00021917,2]
[330236874,1719203457459,-458.71750803,0.00021917,2]
[330236875,1719203457468,-205.74,0.00021917,2]
[330236876,1719203457477,-503.07096005,0.00021917,2]
[330236877,1719203457486,-535.95243186,0.00021917,2]
[330236878,1719203457495,-500.0,0.00021917,2]
[330236879,1719203457504,-500.0,0.00021917,2]
[330236880,1719203457513,-5000.0,0.00021917,2]
[330236881,1719203457522,-593.86,0.00021917,2]
[330236882,1719203457532,-5034.69797298,0.00021917,2]
[330236883,1719203457541,-500.0,0.00021917,2]
[330236884,1719203457550,-500.0,0.00021917,2]
[330236885,1719203457560,-501.47284406,0.00021917,2]
[330236886,1719203457569,-500.0,0.00021917,2]
[330236887,1719203457578,-500.0,0.00021917,2]
[330236888,1719203457587,-500.0,0.00021917,2]
[330236889,1719203457596,-517.31,0.00021917,2]
[330236890,1719203457605,-500.0,0.00021917,2]
[330236891,1719203457615,-500.0,0.00021917,2]
[330236892,1719203457624,-500.0,0.00021917,2]
[330236893,1719203457633,-500.0,0.00021917,2]
[330236894,1719203457643,-501.38116042,0.00021917,2]
[330236895,1719203457652,-151.0,0.00021917,2]
[330236896,1719203457661,-151.0,0.00021917,2]
[330236897,1719203457670,-169.941776,0.00021917,2]
[330236898,1719203457679,-500.0,0.00021917,2]
[330236899,1719203457688,-500.0,0.00021917,2]
[330236900,1719203457697,-500.0,0.00021917,2]
[330236901,1719203457706,-500.0,0.00021917,2]
[330236902,1719203457715,-500.0,0.00021917,2]
[330236903,1719203457725,-500.0,0.00021917,2]
[330236904,1719203457734,-306.69797937,0.00021917,2]
[330236905,1719203457744,-500.0,0.00021917,2]
[330236906,1719203457753,-488.21,0.00021917,2]
[330236907,1719203457762,-500.0,0.00021917,2]
[330236908,1719203457772,-500.0,0.00021917,2]
[330236909,1719203457781,-245.35,0.00021917,2]
[330236910,1719203457790,-500.0,0.00021917,2]
[330236911,1719203457800,-500.0,0.00021917,2]
[330236912,1719203457809,-500.0,0.00021917,2]
[330236913,1719203457818,-505.13598083,0.00021917,2]
[330236914,1719203457827,-500.0,0.00021917,2]
[330236915,1719203457836,-500.0,0.00021917,2]
[330236916,1719203457845,-500.0,0.00021917,2]
[330236917,1719203457854,-500.0,0.00021917,2]
[330236918,1719203457864,-500.0,0.00021917,2]
[330236919,1719203457874,-500.0,0.00021917,2]
[330236920,1719203457883,-504.74937557,0.00021917,2]
[330236921,1719203457892,-500.0,0.00021917,2]
[330236922,1719203457902,-500.0,0.00021917,2]
[330236923,1719203457911,-505.54035231,0.00021917,2]
[330236924,1719203457920,-500.0,0.00021917,2]
[330236925,1719203457930,-500.0,0.00021917,2]
[330236926,1719203457939,-500.0,0.00021917,2]
[330236927,1719203457948,-500.0,0.00021917,2]
[330236928,1719203457957,-500.0,0.00021917,2]
[330236929,1719203457967,-344.84,0.00021917,2]
[330236930,1719203457976,-500.0,0.00021917,2]
[330236931,1719203457986,-500.0,0.00021917,2]
[330236932,1719203457995,-500.0,0.00021917,2]
[330236933,1719203458005,-500.0,0.00021917,2]
[330236934,1719203458018,-500.0,0.00021917,2]
[330236935,1719203458028,-500.0,0.00021917,2]
[330236936,1719203458038,-500.0,0.00021917,2]
[330236937,1719203458047,-459.61,0.00021917,2]
[330236938,1719203458058,-500.0,0.00021917,2]
[330236939,1719203458067,-500.0,0.00021917,2]
[330236940,1719203458077,-500.0,0.00021917,2]
[330236941,1719203458087,-500.0,0.00021917,2]
[330236942,1719203458099,-500.0,0.00021917,2]
[330236943,1719203458110,-500.0,0.00021917,2]
[330236944,1719203458119,-501.47270679,0.00021917,2]
[330236945,1719203458128,-500.0,0.00021917,2]
[330236946,1719203458137,-500.0,0.00021917,2]
[330236947,1719203458147,-500.0,0.00021917,2]
[330236948,1719203458156,-500.0,0.00021917,2]
[330236949,1719203458165,-500.0,0.00021917,2]
[330236950,1719203458174,-510.60957585,0.00021917,2]
[330236951,1719203458183,-500.0,0.00021917,2]
[330236952,1719203458192,-392.31973584,0.00021917,2]
[330236953,1719203458201,-500.0,0.00021917,2]
[330236954,1719203458210,-500.0,0.00021917,2]
[330236955,1719203458220,-422.46,0.00021917,2]
[330236956,1719203458229,-500.0,0.00021917,2]
[330236957,1719203458239,-500.0,0.00021917,2]
[330236958,1719203458249,-500.0,0.00021917,2]
[330236959,1719203458258,-498.09654974,0.00021917,2]
[330236960,1719203458268,-500.0,0.00021917,2]
[330236961,1719203458277,-500.0,0.00021917,2]
[330236962,1719203458286,-500.0,0.00021917,2]
[330236963,1719203458296,-404.30151248,0.00021917,2]
[330236964,1719203458305,-500.0,0.00021917,2]
[330236965,1719203458315,-500.0,0.00021917,2]
[330236966,1719203458324,-178.59,0.00021917,2]
[330236967,1719203458333,-501.94342893,0.00021917,2]
[330236968,1719203458343,-500.0,0.00021917,2]
[330236969,1719203458352,-500.0,0.00021917,2]
[330236970,1719203458363,-500.0,0.00021917,2]
[330236971,1719203458372,-501.72824092,0.00021917,2]
[330236972,1719203458382,-510.62013163,0.00021917,2]
[330236973,1719203458392,-500.0,0.00021917,2]
[330236974,1719203458402,-500.0,0.00021917,2]
[330236975,1719203458411,-332.66138861,0.00021917,2]
[330236976,1719203458421,-503.5737981,0.00021917,2]
[330236977,1719203458430,-500.0,0.00021917,2]
[330236978,1719203458440,-500.0,0.00021917,2]
[330236979,1719203458449,-500.0,0.00021917,2]
[330236980,1719203458459,-500.0,0.00021917,2]
[330236981,1719203458468,-500.0,0.00021917,2]
[330236982,1719203458477,-500.0,0.00021917,2]
[330236983,1719203458487,-500.0,0.00021917,2]
[330236984,1719203458496,-250.80637037,0.00021917,2]
[330236985,1719203458506,-501.21629452,0.00021917,2]
[330236986,1719203458515,-500.0,0.00021917,2]
[330236987,1719203458524,-500.0,0.00021917,2]
[330236988,1719203458534,-500.75609488,0.00021917,2]
[330236989,1719203458543,-648.91,0.00021917,2]
[330236990,1719203458552,-500.0,0.00021917,2]
[330236991,1719203458562,-419.19,0.00021917,2]
[330236992,1719203458572,-500.0,0.00021917,2]
[330236993,1719203458581,-500.0,0.00021917,2]
[330236994,1719203458591,-500.0,0.00021917,2]
[330236995,1719203458600,-500.0,0.00021917,2]
[330236996,1719203458610,-500.0,0.00021917,2]
[330236997,1719203458620,-547.440374,0.00021917,2]
[330236998,1719203458771,-500.0,0.00021917,2]
[330236999,1719203458781,-500.0,0.00021917,2]
[330237000,1719203458791,-605.82465309,0.00021917,2]
[330237001,1719203458801,-500.0,0.00021917,2]
[330237002,1719203458811,-503.23271636,0.00021917,2]
[330237003,1719203458821,-500.0,0.00021917,2]
[330237004,1719203458830,-500.0,0.00021917,2]
[330237005,1719203458840,-500.0,0.00021917,2]
[330237006,1719203458849,-500.0,0.00021917,2]
[330237007,1719203458858,-500.0,0.00021917,2]
[330237008,1719203458869,-500.0,0.00021917,2]
[330237009,1719203458878,-501.07530339,0.00021917,2]
[330237010,1719203458888,-500.0,0.00021917,2]
[330237011,1719203458897,-166.79,0.00021917,2]
[330237012,1719203458907,-500.0,0.00021917,2]
[330237013,1719203458919,-500.0,0.00021917,2]
[330237014,1719203458929,-500.0,0.00021917,2]
[330237015,1719203458938,-500.0,0.00021917,2]
[330237016,1719203458948,-283.33,0.00021917,2]
[330237017,1719203458957,-500.0,0.00021917,2]
[330237018,1719203458966,-501.06129923,0.00021917,2]
[330237019,1719203458975,-500.0,0.00021917,2]
[330237020,1719203458985,-504.14709812,0.00021917,2]
[330237021,1719203458994,-212.26,0.00021917,2]
[330237022,1719203459003,-500.0,0.00021917,2]
[330237023,1719203459014,-500.0,0.00021917,2]
[330237024,1719203459027,-500.0,0.00021917,2]
[330237025,1719203459036,-500.0,0.00021917,2]
[330237026,1719203459045,-500.0,0.00021917,2]
[330237027,1719203459055,-394.02,0.00021917,2]
[330237028,1719203459064,-500.0,0.00021917,2]
[330237029,1719203459073,-504.10626488,0.00021917,2]
[330237030,1719203459082,-500.0,0.00021917,2]
[330237031,1719203459091,-500.0,0.00021917,2]
[330237032,1719203459104,-500.0,0.00021917,2]
[330237033,1719203459115,-500.0,0.00021917,2]
[330237034,1719203459124,-454.87,0.00021917,2]
[330237035,1719203459133,-500.0,0.00021917,2]
[330237036,1719203459143,-500.0,0.00021917,2]
[330237037,1719203459152,-500.0,0.00021917,2]
[330237038,1719203459161,-501.06823201,0.00021917,2]
[330237039,1719203459170,-500.0,0.00021917,2]
[330237040,1719203459179,-500.0,0.00021917,2]
[330237041,1719203459188,-500.0,0.00021917,2]
[330237042,1719203459198,-500.0,0.00021917,2]
[330237043,1719203459207,-500.0,0.00021917,2]
[330237044,1719203459216,-503.13791802,0.00021917,2]
[330237045,1719203459225,-500.0,0.00021917,2]
[330237046,1719203459234,-500.0,0.00021917,2]
[330237047,1719203459244,-500.0,0.00021917,2]
[330237048,1719203459253,-500.0,0.00021917,2]
[330237049,1719203459262,-500.0,0.00021917,2]
[330237050,1719203459271,-575.71,0.00021917,2]
[330237051,1719203459280,-500.0,0.00021917,2]
[330237052,1719203459289,-500.0,0.00021917,2]
[330237053,1719203459298,-508.05690336,0.00021917,2]
[330237054,1719203459307,-500.0,0.00021917,2]
[330237055,1719203459316,-506.21979812,0.00021917,2]
[330237056,1719203459326,-500.0,0.00021917,2]
[330237057,1719203459335,-500.0,0.00021917,2]
[330237058,1719203459344,-160.34,0.00021917,2]
[330237059,1719203459353,-500.0,0.00021917,2]
[330237060,1719203459364,-500.0,0.00021917,2]
[330237061,1719203459373,-500.0,0.00021917,2]
[330237062,1719203459382,-502.90286746,0.00021917,2]
[330237063,1719203459391,-500.0,0.00021917,2]
[330237064,1719203459401,-500.0,0.00021917,2]
[330237065,1719203459410,-500.0,0.00021917,2]
[330237066,1719203459420,-500.0,0.00021917,2]
[330237067,1719203459429,-503.41999073,0.00021917,2]
[330237068,1719203459438,-500.0,0.00021917,2]
[330237069,1719203459447,-170.52996756,0.00021917,2]
[330237070,1719203459457,-500.0,0.00021917,2]
[330237071,1719203459466,-500.0,0.00021917,2]
[330237072,1719203459476,-506.6172251,0.00021917,2]
[330237073,1719203459486,-546.88,0.00021917,2]
[330237074,1719203459495,-500.0,0.00021917,2]
[330237075,1719203459505,-500.0,0.00021917,2]
[330237076,1719203459514,-552.59024667,0.00021917,2]
[330237077,1719203459523,-500.0,0.00021917,2]
[330237078,1719203459532,-500.0,0.00021917,2]
[330237079,1719203459540,-607.55,0.00021917,2]
[330237080,1719203459550,-500.0,0.00021917,2]
[330237081,1719203459559,-502.63292067,0.00021917,2]
[330237082,1719203459568,-500.0,0.00021917,2]
[330237083,1719203459578,-635.35,0.00021917,2]
[330237084,1719203459587,-1000.0,0.00021917,2]
[330237085,1719203459597,-500.0,0.00021917,2]
[330237086,1719203459606,-500.0,0.00021917,2]
[330237087,1719203459618,-512.63091601,0.00021917,2]
[330237088,1719203459627,-500.0,0.00021917,2]
[330237089,1719203459635,-500.0,0.00021917,2]
[330237090,1719203459644,-500.0,0.00021917,2]
[330237091,1719203459653,-166.15,0.00021917,2]
[330237092,1719203459663,-500.0,0.00021917,2]
[330237093,1719203459672,-500.0,0.00021917,2]
[330237094,1719203459681,-478.05,0.00021917,2]
[330237095,1719203459690,-500.0,0.00021917,2]
[330237096,1719203459699,-500.0,0.00021917,2]
[330237097,1719203459708,-501.50412018,0.00021917,2]
[330237098,1719203459717,-500.0,0.00021917,2]
[330237099,1719203459726,-500.0,0.00021917,2]
[330237100,1719203459735,-500.0,0.00021917,2]
[330237101,1719203459744,-500.0,0.00021917,2]
[330237102,1719203459753,-644.71,0.00021917,2]
[330237103,1719203459763,-500.0,0.00021917,2]
[330237104,1719203459772,-500.0,0.00021917,2]
[330237105,1719203459782,-500.0,0.00021917,2]
[330237106,1719203459791,-500.0,0.00021917,2]
[330237107,1719203459800,-500.0,0.00021917,2]
[330237108,1719203459810,-500.0,0.00021917,2]
[330237109,1719203459819,-500.0,0.00021917,2]
[330237110,1719203459828,-500.0,0.00021917,2]
[330237111,1719203459838,-502.38027624,0.00021917,2]
[330237112,1719203459847,-500.0,0.00021917,2]